[Event "Open NK Rapid 2025 bord 26-50"]
[Site "Helmond, Netherlands"]
[Date "2025.05.03"]
[Round "1.12"]
[White "Kshirsagar, Pranav"]
[Black "Hallibert, Emilien"]
[Result "1-0"]
[TimeControl "15 min +5 sec increment"]
[WhiteFideId "1084011"]
[BlackFideId "1092561"]
[WhiteElo "2049"]
[BlackElo "1720"]

1. d4 {[%clk 00:15:09]} {[%emt 00:00:01]} d5 {[%clk 00:15:09]} 2. c4 {[%clk
00:15:13]} {[%emt 00:00:01]} c6 {[%clk 00:15:14]} 3. Nc3 {[%clk 00:15:16]}
{[%emt 00:00:01]} Nf6 {[%clk 00:15:18]} 4. e3 {[%clk 00:15:20]} {[%emt
00:00:01]} e6 {[%clk 00:15:21]} {[%emt 00:00:02]} 5. Nf3 {[%clk 00:15:24]}
{[%emt 00:00:01]} Nbd7 {[%clk 00:15:25]} {[%emt 00:00:01]} 6. Be2 {[%clk
00:15:27]} {[%emt 00:00:01]} dxc4 {[%clk 00:15:29]} {[%emt 00:00:02]} 7. a4
{[%clk 00:15:30]} {[%emt 00:00:02]} a6 {[%clk 00:15:00]} {[%emt 00:00:35]} 8.
Nd2 {[%clk 00:15:30]} {[%emt 00:00:05]} c5 {[%clk 00:14:15]} {[%emt 00:00:50]}
9. Nxc4 {[%clk 00:15:03]} {[%emt 00:00:31]} cxd4 {[%clk 00:14:00]} {[%emt
00:00:20]} 10. exd4 {[%clk 00:14:22]} {[%emt 00:00:46]} Nb6 {[%clk 00:13:28]}
{[%emt 00:00:38]} 11. Nxb6 {[%clk 00:13:53]} {[%emt 00:00:34]} Qxb6 {[%clk
00:13:31]} {[%emt 00:00:01]} 12. a5 {[%clk 00:13:48]} {[%emt 00:00:10]} Qc7
{[%clk 00:13:03]} {[%emt 00:00:33]} 13. O-O {[%clk 00:13:51]} {[%emt 00:00:02]}
Bb4 {[%clk 00:13:03]} {[%emt 00:00:06]} 14. Qa4+ {[%clk 00:13:55]} {[%emt
00:00:02]} b5 {[%clk 00:12:30]} {[%emt 00:00:37]} 15. Qxb4 {[%clk 00:13:42]}
{[%emt 00:00:17]} Bb7 {[%clk 00:12:34]} 16. Bg5 {[%clk 00:13:12]} {[%emt
00:00:35]} Rd8 {[%clk 00:12:10]} {[%emt 00:00:29]} 17. Rfd1 {[%clk 00:12:53]}
{[%emt 00:00:24]} Rd7 {[%clk 00:11:58]} {[%emt 00:00:18]} 18. Rac1 {[%clk
00:12:46]} {[%emt 00:00:12]} Qb8 {[%clk 00:11:39]} {[%emt 00:00:22]} 19. Nxb5
{[%clk 00:11:50]} {[%emt 00:01:02]} axb5 {[%clk 00:10:23]} {[%emt 00:01:21]} 20.
Bxb5 {[%clk 00:11:53]} {[%emt 00:00:02]} Ba6 {[%clk 00:10:19]} {[%emt
00:00:10]} 21. Bxd7+ {[%clk 00:11:55]} {[%emt 00:00:03]} Kxd7 {[%clk 00:10:23]}
{[%emt 00:00:01]} 22. Qa4+ {[%clk 00:10:52]} {[%emt 00:01:07]} Bb5 {[%clk
00:10:10]} {[%emt 00:00:19]} 23. Qc2 {[%clk 00:10:56]} {[%emt 00:00:01]} Nd5
{[%clk 00:09:39]} {[%emt 00:00:35]} 24. Qc5 {[%clk 00:10:43]} {[%emt 00:00:18]}
Qb7 {[%clk 00:08:23]} {[%emt 00:01:23]} 25. h3 {[%clk 00:09:08]} {[%emt
00:01:39]} h5 {[%clk 00:08:27]} {[%emt 00:00:01]} 26. Re1 {[%clk 00:08:39]}
{[%emt 00:00:34]} h4 {[%clk 00:08:08]} {[%emt 00:00:23]} 27. Re4 {[%clk
00:07:44]} {[%emt 00:01:00]} f6 {[%clk 00:06:45]} {[%emt 00:01:29]} 28. Rxh4
{[%clk 00:07:14]} {[%emt 00:00:34]} Rxh4 {[%clk 00:06:43]} {[%emt 00:00:08]} 29.
Bxh4 {[%clk 00:07:07]} {[%emt 00:00:12]} Nf4 {[%clk 00:06:41]} {[%emt
00:00:06]} 30. f3 {[%clk 00:06:39]} {[%emt 00:00:34]} Ne2+ {[%clk 00:05:50]}
{[%emt 00:00:56]} 31. Kf2 {[%clk 00:06:29]} {[%emt 00:00:15]} Nxc1 {[%clk
00:05:30]} {[%emt 00:00:25]} 32. Qxc1 {[%clk 00:06:33]} {[%emt 00:00:01]} Qd5
{[%emt 00:01:19]} 33. Qc3 {[%clk 00:05:19]} Ba6 {[%clk 00:05:15]} {[%emt
00:00:24]} 34. b3 {[%clk 00:04:08]} {[%emt 00:01:16]} Qb5 {[%clk 00:05:09]}
{[%emt 00:00:11]} 35. Kg1 {[%clk 00:04:01]} {[%emt 00:00:12]} Qb7 {[%clk
00:02:13]} {[%emt 00:03:01]} 36. Bg3 {[%clk 00:03:56]} {[%emt 00:00:11]} g5
{[%clk 00:01:55]} {[%emt 00:00:22]} 37. Qc5 {[%clk 00:03:47]} {[%emt 00:00:15]}
Qc6 {[%clk 00:01:58]} {[%emt 00:00:02]} 38. Qf8 {[%clk 00:03:51]} {[%emt
00:00:01]} Qd5 {[%clk 00:01:18]} {[%emt 00:00:45]} 39. Qf7+ {[%clk 00:03:44]}
{[%emt 00:00:12]} Kd8 {[%clk 00:01:17]} {[%emt 00:00:06]} 40. Qc7+ {[%clk
00:03:17]} {[%emt 00:00:31]} Ke8 {[%clk 00:01:19]} {[%emt 00:00:03]} 41. Bd6
{[%clk 00:03:21]} Qxd4+ {[%clk 00:00:55]} {[%emt 00:00:29]} 42. Kh2 {[%clk
00:03:25]} Qa7 {[%clk 00:00:49]} {[%emt 00:00:12]} 43. Qxa7 {[%clk 00:03:27]}
{[%emt 00:00:03]} 1-0

[Event "Open NK Rapid 2025 bord 26-50"]
[Site "Helmond, Netherlands"]
[Date "2025.05.03"]
[Round "1.13"]
[White "Van Wamel, Gijs"]
[Black "Van Ravensteijn, Antal"]
[Result "0-1"]
[TimeControl "15 min +5 sec increment"]
[WhiteFideId "40102165"]
[BlackFideId "1060759"]
[WhiteElo "1713"]
[BlackElo "2048"]

1. Nf3 {[%clk 00:15:07]} {[%emt 00:00:02]} Nf6 {[%clk 00:15:08]} {[%emt
00:00:02]} 2. g3 {[%clk 00:15:09]} {[%emt 00:00:03]} g6 {[%clk 00:15:11]}
{[%emt 00:00:02]} 3. Bg2 {[%clk 00:15:13]} {[%emt 00:00:01]} Bg7 {[%clk
00:14:59]} {[%emt 00:00:18]} 4. O-O {[%clk 00:15:10]} {[%emt 00:00:07]} O-O
{[%clk 00:15:01]} {[%emt 00:00:03]} 5. c4 {[%clk 00:15:06]} {[%emt 00:00:08]}
c5 {[%clk 00:14:55]} {[%emt 00:00:12]} 6. Nc3 {[%clk 00:14:58]} {[%emt
00:00:13]} Nc6 {[%clk 00:14:58]} {[%emt 00:00:02]} 7. e3 {[%clk 00:14:42]}
{[%emt 00:00:22]} a6 {[%clk 00:13:49]} {[%emt 00:01:13]} 8. d4 {[%clk
00:14:34]} {[%emt 00:00:12]} cxd4 {[%clk 00:13:44]} {[%emt 00:00:12]} 9. exd4
{[%clk 00:14:37]} {[%emt 00:00:01]} d5 {[%clk 00:13:43]} {[%emt 00:00:06]} 10.
Ne5 {[%clk 00:13:29]} {[%emt 00:01:14]} dxc4 {[%clk 00:13:03]} {[%emt
00:00:44]} 11. Nxc6 {[%clk 00:13:10]} {[%emt 00:00:24]} bxc6 {[%clk 00:13:07]}
{[%emt 00:00:02]} 12. Bxc6 {[%clk 00:13:11]} {[%emt 00:00:04]} Rb8 {[%clk
00:13:01]} {[%emt 00:00:11]} 13. Bg2 {[%clk 00:11:15]} {[%emt 00:02:01]} Bg4
{[%clk 00:12:34]} {[%emt 00:00:32]} 14. Qa4 {[%clk 00:09:35]} {[%emt 00:01:44]}
Qc8 {[%clk 00:10:57]} {[%emt 00:01:42]} 15. Re1 {[%clk 00:09:03]} {[%emt
00:00:37]} Bd7 {[%clk 00:08:45]} {[%emt 00:02:17]} 16. Qc2 {[%clk 00:08:50]}
{[%emt 00:00:19]} Bf5 {[%clk 00:08:36]} {[%emt 00:00:13]} 17. Qa4 {[%clk
00:08:36]} {[%emt 00:00:20]} e6 {[%clk 00:08:34]} {[%emt 00:00:07]} 18. d5
{[%clk 00:06:57]} {[%emt 00:01:44]} exd5 {[%clk 00:08:28]} {[%emt 00:00:11]} 19.
Nxd5 {[%clk 00:06:59]} {[%emt 00:00:03]} Nxd5 {[%clk 00:08:20]} {[%emt
00:00:11]} 20. Bxd5 {[%clk 00:07:01]} {[%emt 00:00:03]} Bxb2 {[%clk 00:08:15]}
{[%emt 00:00:11]} 21. Bxb2 {[%clk 00:07:00]} {[%emt 00:00:06]} Rxb2 {[%clk
00:08:18]} {[%emt 00:00:02]} 22. Bxc4 {[%clk 00:06:19]} {[%emt 00:00:47]} Qc5
{[%clk 00:08:03]} {[%emt 00:00:19]} 23. Re2 {[%clk 00:06:15]} {[%emt 00:00:09]}
Rb4 {[%clk 00:07:58]} {[%emt 00:00:11]} 24. Bxf7+ {[%clk 00:05:51]} {[%emt
00:00:29]} Rxf7 {[%clk 00:07:59]} {[%emt 00:00:04]} 25. Qxa6 {[%clk 00:05:02]}
{[%emt 00:00:53]} Bh3 {[%clk 00:06:29]} {[%emt 00:01:36]} 26. Qa8+ {[%clk
00:04:36]} {[%emt 00:00:30]} Rf8 {[%clk 00:06:18]} {[%emt 00:00:17]} 27. Re8
{[%clk 00:03:25]} {[%emt 00:01:16]} Qxf2+ {[%clk 00:06:18]} {[%emt 00:00:04]}
28. Kh1 {[%clk 00:03:25]} {[%emt 00:00:04]} Bg2+ {[%clk 00:06:11]} {[%emt
00:00:14]} 0-1

[Event "Open NK Rapid 2025 bord 26-50"]
[Site "Helmond, Netherlands"]
[Date "2025.05.03"]
[Round "1.14"]
[White "Thodam, Malte"]
[Black "El Khaddari, Lina"]
[Result "1-0"]
[TimeControl "15 min +5 sec increment"]
[WhiteFideId "24687120"]
[BlackFideId "1094297"]
[WhiteElo "2044"]
[BlackElo "1711"]

1. e4 {[%clk 00:15:07]} {[%emt 00:00:03]} c5 {[%clk 00:15:08]} {[%emt
00:00:02]} 2. Nc3 {[%clk 00:15:10]} {[%emt 00:00:02]} d6 {[%clk 00:15:11]}
{[%emt 00:00:02]} 3. f4 {[%clk 00:14:27]} {[%emt 00:00:48]} Nc6 {[%clk
00:14:48]} {[%emt 00:00:29]} 4. Nf3 {[%clk 00:14:29]} {[%emt 00:00:02]} Nf6
{[%clk 00:14:41]} {[%emt 00:00:12]} 5. Bb5 {[%clk 00:14:28]} {[%emt 00:00:07]}
g6 {[%clk 00:14:06]} {[%emt 00:00:39]} 6. O-O {[%clk 00:13:46]} {[%emt
00:00:46]} Bg4 {[%clk 00:13:36]} {[%emt 00:00:35]} 7. Bxc6+ {[%clk 00:13:39]}
{[%emt 00:00:13]} bxc6 {[%clk 00:13:39]} {[%emt 00:00:02]} 8. h3 {[%clk
00:13:28]} {[%emt 00:00:16]} Bd7 {[%clk 00:09:24]} {[%emt 00:04:19]} 9. Qe1
{[%clk 00:10:02]} {[%emt 00:03:32]} Qc7 {[%clk 00:06:42]} {[%emt 00:02:48]} 10.
d3 {[%clk 00:09:02]} {[%emt 00:01:04]} Nh5 {[%clk 00:04:22]} {[%emt 00:02:25]}
11. Qh4 {[%clk 00:06:01]} {[%emt 00:03:06]} e6 {[%clk 00:02:44]} {[%emt
00:01:43]} 12. f5 {[%clk 00:04:14]} {[%emt 00:01:51]} Be7 {[%clk 00:02:22]}
{[%emt 00:00:28]} 13. Bg5 {[%clk 00:04:03]} {[%emt 00:00:16]} Qd8 {[%clk
00:01:36]} {[%emt 00:00:50]} 14. fxe6 {[%clk 00:02:47]} {[%emt 00:01:22]} Bxe6
{[%clk 00:01:11]} {[%emt 00:00:30]} 15. Ne2 {[%clk 00:01:23]} {[%emt 00:01:28]}
h6 {[%clk 00:00:22]} {[%emt 00:00:55]} 16. Bxe7 {[%clk 00:01:25]} {[%emt
00:00:03]} Qxe7 {[%clk 00:00:26]} {[%emt 00:00:02]} 17. Qf2 {[%clk 00:01:16]}
{[%emt 00:00:14]} Kd7 {[%clk 00:00:10]} {[%emt 00:00:21]} 18. Rae1 {[%clk
00:00:53]} {[%emt 00:00:27]} Ng7 {[%clk 00:00:12]} {[%emt 00:00:03]} 19. Nf4
{[%clk 00:00:34]} {[%emt 00:00:24]} f5 {[%clk 00:00:09]} {[%emt 00:00:09]} 20.
Nxg6 {[%clk 00:00:35]} {[%emt 00:00:04]} Qf6 {[%clk 00:00:08]} {[%emt
00:00:05]} 21. Nxh8 {[%clk 00:00:33]} {[%emt 00:00:07]} Rxh8 {[%clk 00:00:11]}
{[%emt 00:00:02]} 22. exf5 {[%clk 00:00:28]} {[%emt 00:00:10]} Bxf5 {[%clk
00:00:13]} {[%emt 00:00:03]} 23. Nh4 {[%clk 00:00:19]} {[%emt 00:00:14]} Qxb2
{[%clk 00:00:15]} {[%emt 00:00:03]} 24. Nxf5 {[%clk 00:00:20]} {[%emt
00:00:04]} Nxf5 {[%clk 00:00:18]} {[%emt 00:00:02]} 25. Qxf5+ {[%clk 00:00:24]}
{[%emt 00:00:01]} Kc7 {[%clk 00:00:14]} {[%emt 00:00:08]} 26. Qf7+ {[%clk
00:00:24]} {[%emt 00:00:06]} Kb6 {[%clk 00:00:16]} {[%emt 00:00:03]} 27. Rb1
{[%clk 00:00:27]} {[%emt 00:00:03]} 1-0

[Event "Open NK Rapid 2025 bord 26-50"]
[Site "Helmond, Netherlands"]
[Date "2025.05.03"]
[Round "1.15"]
[White "Ghnim, Abdulrhman"]
[Black "Aarts, Joaquin"]
[Result "0-1"]
[TimeControl "15 min +5 sec increment"]
[WhiteFideId "40101177"]
[BlackFideId "1078224"]
[WhiteElo "1711"]
[BlackElo "2027"]

1. d4 {[%clk 00:15:04]} {[%emt 00:00:05]} Nf6 {[%clk 00:15:09]} {[%emt
00:00:02]} 2. c4 {[%clk 00:14:59]} {[%emt 00:00:10]} e6 {[%clk 00:15:13]}
{[%emt 00:00:01]} 3. Nc3 {[%clk 00:14:50]} {[%emt 00:00:14]} Bb4 {[%clk
00:15:16]} {[%emt 00:00:02]} 4. Bd2 {[%clk 00:14:46]} {[%emt 00:00:08]} b6
{[%clk 00:15:07]} {[%emt 00:00:15]} 5. e3 {[%clk 00:14:32]} {[%emt 00:00:19]}
Bb7 {[%clk 00:15:07]} {[%emt 00:00:05]} 6. Nf3 {[%clk 00:14:31]} {[%emt
00:00:06]} O-O {[%clk 00:15:02]} {[%emt 00:00:10]} 7. Qc2 {[%clk 00:13:33]}
{[%emt 00:01:02]} d6 {[%clk 00:14:55]} {[%emt 00:00:13]} 8. Bd3 {[%clk
00:12:58]} {[%emt 00:00:41]} Nbd7 {[%clk 00:14:54]} {[%emt 00:00:06]} 9. h3
{[%clk 00:12:32]} {[%emt 00:00:30]} e5 {[%clk 00:14:53]} {[%emt 00:00:06]} 10.
dxe5 {[%clk 00:12:32]} {[%emt 00:00:05]} dxe5 {[%clk 00:14:33]} {[%emt
00:00:24]} 11. e4 {[%clk 00:11:55]} {[%emt 00:00:42]} Nc5 {[%clk 00:13:46]}
{[%emt 00:00:52]} 12. Nd5 {[%clk 00:11:09]} {[%emt 00:00:52]} Nxd5 {[%clk
00:10:40]} {[%emt 00:03:11]} 13. cxd5 {[%clk 00:10:57]} {[%emt 00:00:16]} Bxd2+
{[%clk 00:09:46]} {[%emt 00:01:00]} 14. Nxd2 {[%clk 00:10:43]} {[%emt
00:00:19]} c6 {[%clk 00:09:19]} {[%emt 00:00:32]} 15. dxc6 {[%clk 00:09:07]}
{[%emt 00:01:40]} Nxd3+ {[%clk 00:09:21]} {[%emt 00:00:04]} 16. Ke2 {[%clk
00:09:10]} {[%emt 00:00:01]} Ba6 {[%clk 00:08:03]} {[%emt 00:01:24]} 17. Kf3
{[%clk 00:08:37]} {[%emt 00:00:37]} Qf6+ {[%clk 00:08:00]} {[%emt 00:00:08]} 18.
Kg3 {[%clk 00:08:40]} {[%emt 00:00:02]} Qf4# {[%clk 00:08:03]} {[%emt
00:00:02]} 0-1

[Event "Open NK Rapid 2025 bord 26-50"]
[Site "Helmond, Netherlands"]
[Date "2025.05.03"]
[Round "1.16"]
[White "Grooten, Tommy"]
[Black "Swierzy, Lev-Leon"]
[Result "1-0"]
[TimeControl "15 min +5 sec increment"]
[WhiteFideId "1068806"]
[BlackFideId "40120490"]
[WhiteElo "2027"]
[BlackElo "1709"]

1. Nf3 {[%clk 00:15:09]} d5 {[%clk 00:15:07]} {[%emt 00:00:04]} 2. c4 {[%clk
00:15:10]} {[%emt 00:00:04]} Nf6 {[%clk 00:15:07]} {[%emt 00:00:05]} 3. cxd5
{[%clk 00:15:13]} {[%emt 00:00:02]} Nxd5 {[%clk 00:15:05]} {[%emt 00:00:07]} 4.
e4 {[%clk 00:15:16]} {[%emt 00:00:01]} Nb6 {[%clk 00:15:03]} {[%emt 00:00:07]}
5. d4 {[%clk 00:15:18]} {[%emt 00:00:03]} e6 {[%clk 00:14:56]} {[%emt
00:00:12]} 6. Nc3 {[%clk 00:15:22]} {[%emt 00:00:01]} Bb4 {[%clk 00:14:57]}
{[%emt 00:00:05]} 7. Be2 {[%clk 00:15:24]} {[%emt 00:00:02]} O-O {[%clk
00:14:49]} {[%emt 00:00:14]} 8. Be3 {[%clk 00:15:28]} {[%emt 00:00:01]} c6
{[%clk 00:14:10]} {[%emt 00:00:45]} 9. O-O {[%clk 00:15:29]} {[%emt 00:00:02]}
Bd6 {[%clk 00:13:51]} {[%emt 00:00:24]} 10. Qc2 {[%clk 00:15:25]} {[%emt
00:00:08]} Re8 {[%clk 00:13:21]} {[%emt 00:00:36]} 11. e5 {[%clk 00:15:09]}
{[%emt 00:00:22]} Bc7 {[%clk 00:13:11]} {[%emt 00:00:15]} 12. Ne4 {[%clk
00:15:12]} {[%emt 00:00:02]} N8d7 {[%clk 00:12:09]} {[%emt 00:01:07]} 13. Neg5
{[%clk 00:15:15]} {[%emt 00:00:02]} g6 {[%clk 00:11:53]} {[%emt 00:00:20]} 14.
h4 {[%clk 00:15:07]} {[%emt 00:00:13]} Nd5 {[%clk 00:11:12]} {[%emt 00:00:47]}
15. h5 {[%clk 00:15:03]} {[%emt 00:00:08]} Nf8 {[%clk 00:10:52]} {[%emt
00:00:25]} 16. Bd2 {[%clk 00:14:04]} {[%emt 00:01:04]} b6 {[%clk 00:09:36]}
{[%emt 00:01:22]} 17. Qxc6 {[%clk 00:13:44]} {[%emt 00:00:24]} Bd7 {[%clk
00:08:36]} {[%emt 00:01:06]} 18. Qc2 {[%clk 00:13:46]} {[%emt 00:00:03]} Bc8
{[%clk 00:07:42]} {[%emt 00:00:59]} 19. Rac1 {[%clk 00:13:31]} {[%emt
00:00:19]} Bb7 {[%clk 00:07:05]} {[%emt 00:00:42]} 20. Bb5 {[%clk 00:13:33]}
{[%emt 00:00:03]} Re7 {[%clk 00:06:57]} {[%emt 00:00:14]} 21. Ne4 {[%clk
00:13:33]} {[%emt 00:00:04]} a6 {[%clk 00:06:25]} {[%emt 00:00:38]} 22. Bd3
{[%clk 00:13:28]} {[%emt 00:00:09]} a5 {[%clk 00:06:06]} {[%emt 00:00:25]} 23.
Bg5 {[%clk 00:13:29]} {[%emt 00:00:04]} Rc8 {[%clk 00:05:25]} {[%emt 00:00:46]}
24. Qb1 {[%clk 00:13:29]} {[%emt 00:00:04]} Nb4 {[%clk 00:05:24]} {[%emt
00:00:07]} 25. Bxe7 {[%clk 00:13:26]} {[%emt 00:00:08]} Qxe7 {[%clk 00:05:19]}
{[%emt 00:00:09]} 26. Nf6+ {[%clk 00:13:29]} {[%emt 00:00:02]} Kg7 {[%clk
00:04:44]} {[%emt 00:00:40]} 27. Be4 {[%clk 00:13:10]} {[%emt 00:00:24]} Bxe4
{[%clk 00:04:32]} {[%emt 00:00:16]} 28. Qxe4 {[%clk 00:13:06]} {[%emt
00:00:10]} Nxa2 {[%clk 00:04:16]} {[%emt 00:00:22]} 29. h6+ {[%clk 00:13:08]}
{[%emt 00:00:03]} Kh8 {[%clk 00:04:14]} {[%emt 00:00:07]} 30. Rc4 {[%clk
00:12:58]} {[%emt 00:00:14]} b5 {[%clk 00:04:02]} {[%emt 00:00:18]} 31. Rc5
{[%clk 00:12:58]} {[%emt 00:00:04]} Nd7 {[%clk 00:03:31]} {[%emt 00:00:37]} 32.
Nxd7 {[%clk 00:12:58]} {[%emt 00:00:04]} Qxd7 {[%clk 00:03:34]} {[%emt
00:00:02]} 33. Qf4 {[%clk 00:12:58]} {[%emt 00:00:06]} Nb4 {[%clk 00:03:22]}
{[%emt 00:00:17]} 34. Qf6+ {[%clk 00:12:59]} {[%emt 00:00:03]} 1-0

[Event "Open NK Rapid 2025 bord 26-50"]
[Site "Helmond, Netherlands"]
[Date "2025.05.03"]
[Round "1.17"]
[White "Suthan, Aadvik"]
[Black "Bakels, Anton"]
[Result "1/2-1/2"]
[TimeControl "15 min +5 sec increment"]
[WhiteFideId "1095765"]
[BlackFideId "1046187"]
[WhiteElo "1708"]
[BlackElo "2025"]

1. e4 {[%clk 00:15:09]} c5 {[%clk 00:15:09]} {[%emt 00:00:02]} 2. Nf3 {[%clk
00:15:12]} {[%emt 00:00:02]} d6 {[%clk 00:15:12]} {[%emt 00:00:01]} 3. d4
{[%clk 00:15:15]} {[%emt 00:00:02]} cxd4 {[%clk 00:15:15]} {[%emt 00:00:02]} 4.
Nxd4 {[%clk 00:15:17]} {[%emt 00:00:02]} Nf6 {[%clk 00:15:18]} {[%emt
00:00:03]} 5. Nc3 {[%clk 00:15:20]} {[%emt 00:00:02]} a6 {[%clk 00:15:22]}
{[%emt 00:00:01]} 6. f3 {[%clk 00:15:18]} {[%emt 00:00:06]} e5 {[%clk
00:15:17]} {[%emt 00:00:10]} 7. Nb3 {[%clk 00:15:07]} {[%emt 00:00:16]} Be6
{[%clk 00:15:04]} {[%emt 00:00:18]} 8. Be3 {[%clk 00:14:50]} {[%emt 00:00:20]}
Be7 {[%clk 00:14:49]} {[%emt 00:00:22]} 9. Be2 {[%clk 00:14:13]} {[%emt
00:00:42]} Nbd7 {[%clk 00:14:14]} {[%emt 00:00:40]} 10. Bf2 {[%clk 00:13:50]}
{[%emt 00:00:28]} Qc7 {[%clk 00:13:31]} {[%emt 00:00:48]} 11. Qd2 {[%clk
00:13:25]} {[%emt 00:00:27]} O-O {[%clk 00:13:19]} {[%emt 00:00:20]} 12. O-O
{[%clk 00:13:17]} {[%emt 00:00:13]} b5 {[%clk 00:13:12]} {[%emt 00:00:12]} 13.
a3 {[%clk 00:13:00]} {[%emt 00:00:23]} Nb6 {[%clk 00:13:05]} {[%emt 00:00:11]}
14. Rad1 {[%clk 00:11:45]} {[%emt 00:01:17]} Rfd8 {[%clk 00:13:01]} {[%emt
00:00:13]} 15. Qc1 {[%clk 00:11:26]} {[%emt 00:00:23]} Rac8 {[%clk 00:12:50]}
{[%emt 00:00:16]} 16. Qe3 {[%clk 00:11:05]} {[%emt 00:00:26]} Nc4 {[%clk
00:12:37]} {[%emt 00:00:18]} 17. Bxc4 {[%clk 00:10:44]} {[%emt 00:00:26]} Bxc4
{[%clk 00:10:55]} {[%emt 00:01:47]} 18. Rfe1 {[%clk 00:10:42]} {[%emt
00:00:08]} Nd7 {[%clk 00:10:10]} {[%emt 00:00:50]} 19. Rd2 {[%clk 00:09:56]}
{[%emt 00:00:51]} h6 {[%clk 00:08:23]} {[%emt 00:01:52]} 20. h4 {[%clk
00:09:38]} {[%emt 00:00:22]} Nf8 {[%clk 00:08:05]} {[%emt 00:00:23]} 21. Qb6
{[%clk 00:09:11]} {[%emt 00:00:33]} Qxb6 {[%clk 00:05:44]} {[%emt 00:02:26]} 22.
Bxb6 {[%clk 00:09:11]} {[%emt 00:00:05]} Bxh4 {[%clk 00:05:47]} {[%emt
00:00:02]} 23. Red1 {[%clk 00:08:24]} {[%emt 00:00:49]} Re8 {[%clk 00:04:19]}
{[%emt 00:01:35]} 24. Rxd6 {[%clk 00:08:15]} {[%emt 00:00:14]} Be7 {[%clk
00:04:12]} {[%emt 00:00:13]} 25. R6d2 {[%clk 00:07:52]} {[%emt 00:00:27]} Bxb3
{[%clk 00:04:06]} {[%emt 00:00:11]} 26. cxb3 {[%clk 00:07:54]} {[%emt
00:00:03]} Bxa3 {[%clk 00:03:53]} {[%emt 00:00:18]} 27. Nxb5 {[%clk 00:06:42]}
{[%emt 00:01:17]} Bb4 {[%clk 00:02:56]} {[%emt 00:01:02]} 28. Nd6 {[%clk
00:06:37]} {[%emt 00:00:10]} Bxd2 {[%clk 00:02:49]} {[%emt 00:00:12]} 29. Nxe8
{[%clk 00:06:00]} {[%emt 00:00:42]} Rc2 {[%clk 00:01:34]} {[%emt 00:01:20]} 30.
Nd6 {[%clk 00:05:35]} {[%emt 00:00:26]} Ne6 {[%clk 00:01:36]} {[%emt 00:00:07]}
31. Nc4 {[%clk 00:05:25]} {[%emt 00:00:14]} Bb4 {[%clk 00:01:36]} {[%emt
00:00:07]} 32. Nxe5 {[%clk 00:04:47]} {[%emt 00:00:42]} Nf4 {[%clk 00:01:40]}
{[%emt 00:00:02]} 33. Bf2 {[%clk 00:04:05]} {[%emt 00:00:46]} Rxb2 {[%clk
00:00:30]} {[%emt 00:01:16]} 34. Nd3 {[%clk 00:03:47]} {[%emt 00:00:14]} Nxd3
{[%clk 00:00:33]} {[%emt 00:00:10]} 35. Rxd3 {[%clk 00:03:51]} {[%emt
00:00:01]} Ba5 {[%emt 00:01:16]} 36. Rd5 {[%clk 00:02:43]} {[%emt 00:00:16]}
Bc7 {[%clk 00:00:24]} 37. g3 {[%clk 00:02:25]} {[%emt 00:00:23]} Rxb3 {[%clk
00:00:28]} 38. Rd7 {[%clk 00:02:19]} {[%emt 00:00:11]} Rb1+ {[%clk 00:00:26]}
{[%emt 00:00:07]} 39. Kg2 {[%clk 00:02:19]} {[%emt 00:00:05]} Be5 {[%clk
00:00:22]} {[%emt 00:00:08]} 40. f4 {[%clk 00:02:14]} {[%emt 00:00:10]} Bc3
{[%clk 00:00:24]} {[%emt 00:00:04]} 41. Rd8+ {[%clk 00:02:09]} {[%emt
00:00:10]} Kh7 {[%clk 00:00:28]} {[%emt 00:00:01]} 42. Rd7 {[%clk 00:02:09]}
{[%emt 00:00:04]} Kg8 {[%clk 00:00:21]} {[%emt 00:00:12]} 43. Rd8+ {[%clk
00:02:12]} {[%emt 00:00:02]} Kh7 {[%clk 00:00:25]} 44. Rd7 {[%clk 00:02:17]}
{[%emt 00:00:01]} Kg8 {[%clk 00:00:17]} {[%emt 00:00:14]} 45. Rd8+ {[%clk
00:02:20]} Kh7 {[%clk 00:00:22]} {[%emt 00:00:01]} 46. Rd7 {[%clk 00:02:25]}
Kg6 {[%clk 00:00:14]} 47. Rd6+ {[%clk 00:02:25]} {[%emt 00:00:32]} 1/2-1/2